[Event "Istanbul Open 2017"]
[Site "Istanbul"]
[Date "2017.09.13"]
[Round "4"]
[White "Aydogdu, Cagatay"]
[Black "Eren, Ataberk"]
[Result "0-1"]
[ECO "C01"]
[WhiteElo "1756"]
[BlackElo "2064"]
[Annotator "NA RC"]
[PlyCount "100"]
[EventDate "2017.??.??"]
[EventType "swiss"]
[EventCountry "TUR"]
[SourceTitle "playchess.com"]
[Source "ChessBase"]
[SourceQuality "1"]
[TimeControl "5400+30"]

{[%evp 18,87,0,0,0,-5,13,14,4,11,18,-41,0,0,0,5,27,19,19,10,29,6,13,0,10,-32,0,-32,-6,-16,-13,-158,-152,-255,-287,-302,-168,-183,-188,-190,-127,-127,-93,-473,-437,-700,-166,-162,-166,-162,-178,-213,-62,-341,-402,-376,-460,-548,-548,-517,32767,32767,32767,32767,-514,-603,-616,-592,-668,-552,-644,-704]} 1. e4 {[%emt 0:00:00]} e6 {[%emt 0:00:00]} 2. d4 {[%emt 0:00:00]} d5 {[%emt 0:00:30]} 3. exd5 {[%emt 0:00:00]} exd5 {[%emt 0:00:30]} 4. Bd3 {[%emt 0:00:00]} Nc6 {[%emt 0:00:30]} 5. c3 {[%emt 0:00:30]} Bd6 {[%emt 0:00:30]} 6. Nf3 {[%emt 0:00:30]} Nge7 {[%emt 0:00:30]} 7. Bg5 {[%emt 0:00:30]} f6 {[%emt 0:00:30]} 8. Bh4 {[%emt 0:00:30] C01: Französische Verteidigung (Abtauschvariante)} Bg4 {[%emt 0:00:00]} (8... Bf5 9. Bg3 Bxg3 10. hxg3 Qd7 11. Nh4 Bxd3 12. Qxd3 Qe6+ 13. Qe2 Qxe2+ 14. Kxe2 Kf7 15. Nd2 h5 {0-1 (29) Robin,S (2347)-Buhmann,R (2565) France 2009}) 9. Nbd2 {[%emt 0:00:30]} Qd7 {[%emt 0:00:00]} 10. Bg3 {[%emt 0:00:30]} O-O-O {[%emt 0:01:30]} 11. Qc2 {[%emt 0:00:30]} Qe6+ {[%emt 0:00:30]} 12. Kf1 {[%emt 0:01:30]} h5 {[%emt 0:09:30]} 13. Re1 {[%emt 0:00:30]} Qd7 {[%emt 0:00:30]} 14. Nh4 $146 {[%emt 0:01:30]} ({Lieber Vorgänger:} 14. Bxd6 $11 cxd6 (14... Qxd6 15. h3 Bd7 {0-1 (48) Zubac,M (1991)-Dicu,R (2236) Arad 2016}) 15. h4) 14... g5 {[%emt 0:04:30]} 15. Bxd6 {[%emt 0:02:30]} cxd6 {[%emt 0:00:30]} 16. Ng6 {[%emt 0:01:30]} Rhe8 {[%emt 0:06:30]} 17. f3 {[%emt 0:06:30]} Bf5 {[%emt 0:02:30]} 18. Nxe7+ {[%emt 0:01:30]} Nxe7 {[%emt 0:00:00]} 19. Kf2 {[%emt 0:01:30]} Bxd3 {[%emt 0:02:00]} 20. Qxd3 {[%emt 0:00:30]} f5 {[%emt 0:00:30]} 21. Re2 {[%emt 0:03:00]} (21. f4 $5 {[%cal Rf4g5]}) 21... Ng6 {[%emt 0:03:30]} 22. g3 {[%emt 0:00:30]} Rxe2+ {[%emt 0:00:00]} 23. Qxe2 {[%emt 0:03:30]} Re8 {[%emt 0:01:00]} 24. Qd3 {[%emt 0:01:30]} (24. Qd1 $1 $15) 24... Qe6 {[%emt 0:00:30]} 25. Nb1 {[%emt 0:00:30]} (25. Rc1 $142 f4 26. Kg1) 25... f4 {[%emt 0:00:30]} 26. Na3 {[%emt 0:01:30]} g4 {[%emt 0:05:30]} 27. Nc2 {[%emt 0:02:30]} Rf8 {[%emt 0:04:30]} 28. Re1 {[%emt 0:02:30]} fxg3+ {[%emt 0:06:30]} 29. hxg3 {[%emt 0:01:30]} Qf6 {[%emt 0:00:00]} 30. Nb4 $2 {[%emt 0:02:30]} (30. f4 $17 {ist eine bessere Chance.}) 30... h4 {[%emt 0:01:00]} 31. Nxd5 {[%emt 0:01:30]} (31. f4 $142 hxg3+ 32. Qxg3 Nxf4 33. Qxg4+ Kb8 34. Ke3) 31... Qxf3+ $2 {[%emt 0:16:30]} (31... hxg3+ 32. Ke3 Qg5+ 33. f4 Nxf4 34. Qc4+ Kb8 35. Qc7+ Ka8 36. Nxf4 Qxf4+ 37. Kd3 g2) 32. Qxf3 {[%emt 0:00:30]} Rxf3+ {[%emt 0:00:30]} 33. Kg2 {[%emt 0:00:30]} Rxg3+ {[%emt 0:01:30]} 34. Kh2 {[%emt 0:00:00]} Rh3+ {[%emt 0:08:30]} (34... Rf3 $19 35. Re6 Nf4 36. Nxf4 Rxf4) 35. Kg2 $2 {[%emt 0:00:00]} (35. Kg1 $1 $15) 35... Rf3 {[%emt 0:04:30]} 36. Re8+ {[%emt 0:03:30]} Kd7 {[%emt 0:00:30]} 37. Rg8 {[%emt 0:00:30]} h3+ {[%emt 0:00:30]} 38. Kg1 {[%emt 0:00:30]} g3 {[%emt 0:00:30]} 39. Rxg6 {[%emt 0:00:30]} h2+ {[%emt 0:00:30]} 40. Kg2 {[%emt 0:00:30]} Rf2+ {[%emt 1:32:43]} 41. Kxg3 {[%emt 0:58:30]} h1=Q {[%emt 0:00:30]} 42. Rg7+ {[%emt 0:00:30] [#]} Rf7 $1 {[%emt 0:00:30]} 43. Rxf7+ {[%emt 0:00:30]} Ke6 {[%emt 0:00:30]} 44. Rxb7 $19 {[%emt 0:00:30]} Kxd5 {[%emt 0:00:30]} 45. Rxa7 {[%emt 0:00:30]} Qe1+ {[%emt 0:00:30]} 46. Kf4 {[%emt 0:00:30]} Qf2+ {[%emt 0:00:30]} 47. Kg5 {[%emt 0:00:30]} Qxb2 {[%emt 0:00:30]} 48. Ra5+ {[%emt 0:00:30]} Ke4 {[%emt 0:00:30]} 49. Rf5 {[%emt 0:01:30]} Qxa2 {[%emt 0:01:27]} 50. d5 {[%emt 0:01:30]} Qd2+ {[%emt 0:00:16]} 0-1

[Event "Istanbul Open 2017"]
[Site "Istanbul"]
[Date "2017.09.13"]
[Round "4"]
[White "Aslan, Nevzat"]
[Black "Inciler, Yusuf Efe"]
[Result "0-1"]
[ECO "D47"]
[WhiteElo "1681"]
[BlackElo "1494"]
[Annotator "NA RC"]
[PlyCount "112"]
[EventDate "2017.??.??"]
[EventType "swiss"]
[EventCountry "TUR"]
[SourceTitle "playchess.com"]
[Source "ChessBase"]
[SourceQuality "1"]
[TimeControl "5400+30"]

1. d4 d5 2. c4 c6 3. Nc3 Nf6 4. Nf3 e6 5. e3 Nbd7 6. Bd3 dxc4 7. Bxc4 b5 8. Bd3 Bb7 9. O-O Be7 10. e4 O-O 11. Bg5 a6 12. e5 Nd5 13. Bxe7 Qxe7 14. Ne4 Nf4 15. Bc2 f5 16. Nd6 Nb6 17. g3 Nfd5 18. Bb3 f4 19. Qd3 g6 20. Rac1 Rab8 21. a3 Ba8 22. Bd1 Qg7 23. Ng5 Qh6 24. Nxe6 fxg3 25. hxg3 Qxc1 26. Nxf8 Rxf8 27. Bg4 {[%emt 1:37:17]} Qg5 {[%emt 0:52:00]} 28. Be6+ {[%emt 0:00:30]} Kg7 {[%emt 0:00:30]} 29. Ne4 {[%emt 0:00:30]} Qe7 {[%emt 0:00:30]} 30. Nc5 {[%emt 0:00:30]} Na4 {[%emt 0:00:30]} 31. Bxd5 {[%emt 0:00:30]} Nxc5 {[%emt 0:00:30]} 32. dxc5 {[%emt 0:00:30]} cxd5 {[%emt 0:00:30]} 33. Qd4 {[%emt 0:00:30]} Qe6 {[%emt 0:00:30]} 34. Rc1 {[%emt 0:00:30]} Bc6 {[%emt 0:00:30]} 35. b3 {[%emt 0:00:30]} Rf5 {[%emt 0:00:30]} 36. Re1 {[%emt 0:00:30]} Rh5 {[%emt 0:00:30]} 37. g4 {[%emt 0:00:30]} Rg5 {[%emt 0:00:30]} 38. f3 {[%emt 0:00:26]} h5 {[%emt 0:00:30]} 39. Qf4 {[%emt 0:00:18]} Qf5 {[%emt 0:02:30]} 40. Qxf5 {[%emt 0:01:13]} gxf5 {[%emt 0:00:00]} 41. Kf2 {[%emt 0:00:48]} fxg4 {[%emt 0:00:00]} 42. fxg4 {[%emt 0:00:26]} Rxg4 {[%emt 0:00:30]} 43. e6 {[%emt 0:01:39]} Re4 {[%emt 0:00:30]} 44. Rg1+ {[%emt 0:00:19]} Kf6 {[%emt 0:00:00]} 45. Rg8 {[%emt 0:00:25]} Rxe6 {[%emt 0:01:00]} 46. Rh8 {[%emt 0:01:19]} Kg5 {[%emt 0:00:00]} 47. Rg8+ {[%emt 0:00:32]} Rg6 {[%emt 0:00:00]} 48. Rh8 {[%emt 0:00:47]} h4 {[%emt 0:00:30]} 49. Rh7 {[%emt 0:00:44]} Kg4 {[%emt 0:00:00]} 50. Ra7 {[%emt 0:01:27]} h3 {[%emt 0:00:00]} 51. Rh7 {[%emt 0:00:32]} d4 {[%emt 0:00:30]} 52. a4 {[%emt 0:00:45]} d3 {[%emt 0:00:00]} 53. axb5 {[%emt 0:00:12]} axb5 {[%emt 0:00:00]} 54. b4 {[%emt 0:01:43]} d2 {[%emt 0:00:30]} 55. Ke2 {[%emt 0:00:26]} Kg3 {[%emt 0:00:00]} 56. Kxd2 {[%emt 0:01:03]} h2 {[%emt 0:00:00]} 0-1

[Event "Istanbul Open 2017"]
[Site "Istanbul"]
[Date "2017.09.13"]
[Round "4"]
[White "Aydin, Ali Umut"]
[Black "Gultekin, Celal"]
[Result "1/2-1/2"]
[ECO "D01"]
[WhiteElo "1627"]
[BlackElo "1560"]
[Annotator "NA RC"]
[PlyCount "127"]
[EventDate "2017.??.??"]
[EventType "swiss"]
[EventCountry "TUR"]
[SourceTitle "playchess.com"]
[Source "ChessBase"]
[SourceQuality "1"]
[TimeControl "5400+30"]

1. d4 d5 2. Nc3 Nf6 3. Bg5 Bf5 4. e3 Nbd7 5. Bd3 Bxd3 6. Qxd3 c6 7. Nf3 h6 8. Bh4 e6 9. O-O g5 10. Bg3 Nh5 11. Be5 Rg8 12. Bg3 f5 13. Rae1 Nxg3 14. fxg3 Nf6 15. Nd1 Bd6 16. c4 Qe7 17. cxd5 cxd5 18. Nc3 a6 19. Qc2 Qc7 20. Qa4+ Qd7 21. Rc1 Ke7 22. Nd2 Rgc8 23. Qd1 Rc7 24. Qf3 Rac8 25. a3 b6 26. h3 Bxa3 27. Nxd5+ Qxd5 28. Rxc7+ Rxc7 29. bxa3 Rc2 30. Rf2 Qa2 31. Nf1 Rxf2 32. Qxf2 Qxa3 33. Qc2 b5 34. Kh2 b4 35. Nd2 Nd7 36. d5 Qc3 37. Qa2 Qxe3 38. Nc4 Qc3 39. Qxa6 exd5 40. Qd6+ Kd8 41. Nb6 Qc7 42. Qxc7+ Kxc7 43. Nxd5+ Kd6 44. Nxb4 Ke5 45. Nc6+ Ke4 46. Kg1 Ne5 47. Nxe5 Kxe5 48. Kf2 Ke4 49. Ke2 h5 50. Kf2 Kd4 51. Kf3 Kd3 52. h4 g4+ 53. Kf4 Ke2 54. Kg5 Kf2 55. Kxh5 Kxg3 56. Kg5 f4 57. h5 f3 58. gxf3 gxf3 59. h6 f2 60. h7 f1=Q 61. h8=Q {[%emt 1:55:50]} Qf4+ {[%emt 1:59:22]} 62. Kg6 {[%emt 0:00:30]} Qg4+ {[%emt 0:00:30]} 63. Kf7 {[%emt 0:00:30]} Qd7+ {[%emt 0:00:30]} 64. Kg8 {[%emt 0:00:30]} 1/2-1/2

[Event "Istanbul Open 2017"]
[Site "Istanbul"]
[Date "2017.09.13"]
[Round "4"]
[White "Gurses, Ayberk"]
[Black "Aslan, Dogukan"]
[Result "1-0"]
[ECO "B14"]
[WhiteElo "1601"]
[BlackElo "1605"]
[Annotator "NA RC"]
[PlyCount "121"]
[EventDate "2017.??.??"]
[EventType "swiss"]
[EventCountry "TUR"]
[SourceTitle "playchess.com"]
[Source "ChessBase"]
[SourceQuality "1"]
[TimeControl "5400+30"]

1. e4 c5 2. Nf3 g6 3. c3 Bg7 4. d4 cxd4 5. cxd4 d5 6. exd5 Nf6 7. Nc3 Nxd5 8. Bc4 Nb6 9. Bb3 O-O 10. Be3 Bg4 11. h3 Bxf3 12. Qxf3 Nc6 13. d5 Ne5 14. Qe2 Rc8 15. O-O Nec4 16. Bg5 Re8 17. Rac1 Nd6 18. Na4 Nf5 19. Nxb6 Qxb6 20. Ba4 Ng3 21. Qg4 Nf5 22. Bxe8 Rxe8 23. b3 Qa5 24. Qc4 h6 25. b4 Qb6 26. Bf4 g5 27. Bc7 Qg6 28. Qb5 Rf8 29. Qxb7 g4 30. Qc6 Bf6 31. g3 Nd4 32. Qc4 Qe4 33. f3 Qe3+ 34. Kh1 gxf3 35. Bf4 Qe4 36. Rce1 Qf5 37. Kh2 Rc8 38. Bc7 f2 39. Rd1 Nf3+ 40. Kg2 Ne5 41. Qf4 Qxf4 42. gxf4 Nc4 43. Be5 Ne3+ 44. Kxf2 Nxd1+ 45. Rxd1 Bxe5 46. fxe5 Kf8 47. Ke3 Rc2 48. Rd2 Rc3+ 49. Rd3 Rc2 50. Ra3 Rb2 {[%emt 1:50:13]} 51. Rxa7 {[%emt 1:52:37]} Rxb4 {[%emt 0:00:30]} 52. a4 {[%emt 0:00:30]} Rb3+ {[%emt 0:00:30]} 53. Kd4 {[%emt 0:00:30]} Rxh3 {[%emt 0:00:30]} 54. a5 {[%emt 0:00:30]} Ra3 {[%emt 0:00:30]} 55. Ra8+ {[%emt 0:00:30]} Kg7 {[%emt 0:00:30]} 56. d6 {[%emt 0:00:30]} exd6 {[%emt 0:00:30]} 57. exd6 {[%emt 0:00:30]} Ra1 {[%emt 0:00:30]} 58. Kc5 {[%emt 0:00:30]} Kf6 {[%emt 0:00:30]} 59. d7 {[%emt 0:00:30]} Rc1+ {[%emt 0:00:30]} 60. Kb6 {[%emt 0:00:30]} Rb1+ {[%emt 0:00:30]} 61. Ka6 {[%emt 0:00:30]} 1-0

[Event "Istanbul Open 2017"]
[Site "Istanbul"]
[Date "2017.09.13"]
[Round "4"]
[White "Esti, Kubra Selenay"]
[Black "Kilic, Eray"]
[Result "0-1"]
[ECO "B36"]
[WhiteElo "1583"]
[BlackElo "1727"]
[Annotator "NA RC"]
[PlyCount "47"]
[EventDate "2017.??.??"]
[EventType "swiss"]
[EventCountry "TUR"]
[SourceTitle "playchess.com"]
[Source "ChessBase"]
[SourceQuality "1"]
[TimeControl "5400+30"]

1. e4 c5 2. Nf3 Nc6 3. d4 cxd4 4. Nxd4 g6 5. c4 Nf6 6. Nc3 Nxd4 7. Qxd4 d6 8. f3 Bg7 9. Be3 O-O 10. Qd2 a5 11. Na4 Nd7 12. Be2 Nc5 13. Nxc5 dxc5 14. Bxc5 Qc7 15. Ba3 Be6 16. O-O Rfd8 17. Qc1 Rac8 18. Kh1 Rd7 19. Rd1 Rcd8 20. Rd5 Bxd5 21. cxd5 Qb8 22. Qd2 Be5 23. Qxa5 Bxh2 24. Bc5 {[%emt 1:41:32]} 0-1

[Event "Istanbul Open 2017"]
[Site "Istanbul"]
[Date "2017.09.13"]
[Round "4"]
[White "Kabadayi, Suleyman Arda"]
[Black "Ozbag, Berat"]
[Result "1/2-1/2"]
[ECO "C68"]
[WhiteElo "1579"]
[BlackElo "1638"]
[Annotator "NA RC"]
[PlyCount "84"]
[EventDate "2017.??.??"]
[EventType "swiss"]
[EventCountry "TUR"]
[SourceTitle "playchess.com"]
[Source "ChessBase"]
[SourceQuality "1"]
[TimeControl "5400+30"]

1. e4 e5 2. Nf3 Nc6 3. Bb5 a6 4. Bxc6 dxc6 5. d4 exd4 6. Qxd4 Qxd4 7. Nxd4 Bc5 8. Be3 Nf6 9. f3 O-O 10. Nd2 Re8 11. N2b3 Bb6 12. Kf2 Nd7 13. Nf5 g6 14. Bxb6 gxf5 15. Bxc7 fxe4 16. fxe4 Rxe4 17. Rhe1 Nf6 18. h3 Bf5 19. c3 Nd5 20. Bh2 b5 21. Rxe4 Bxe4 22. Re1 f5 23. Nc5 Re8 24. g4 Kf7 25. gxf5 Bxf5 26. Rxe8 Kxe8 27. Nxa6 Bxh3 28. Nb4 Ne7 29. Ke3 Kd7 30. Kd4 Bg2 31. Kc5 Nf5 32. b3 Ne3 33. a4 bxa4 34. bxa4 Nd5 35. Nxd5 cxd5 36. a5 Kc8 37. a6 h5 38. Kb6 h4 39. a7 d4 40. cxd4 h3 41. Bb8 Bf3 42. Bg3 Bg2 {[%emt 1:27:30]} 1/2-1/2

[Event "Istanbul Open 2017"]
[Site "Istanbul"]
[Date "2017.09.14"]
[Round "5"]
[White "Kitir, Ahmet"]
[Black "Kocyigit, Buse Naz"]
[Result "1-0"]
[ECO "B01"]
[WhiteElo "2057"]
[BlackElo "1863"]
[Annotator "NA RC"]
[PlyCount "77"]
[EventDate "2017.??.??"]
[EventType "swiss"]
[EventCountry "TUR"]
[SourceTitle "playchess.com"]
[Source "ChessBase"]
[SourceQuality "1"]
[TimeControl "5400+30"]

1. e4 {[%emt 0:02:30]} d5 {[%emt 0:01:00]} 2. exd5 {[%emt 0:00:30]} Qxd5 {[%emt 0:00:00]} 3. Nc3 {[%emt 0:00:00]} Qd6 {[%emt 0:00:00]} 4. Nf3 {[%emt 0:02:30]} Bg4 {[%emt 0:00:00]} 5. d4 {[%emt 0:05:30]} Nf6 {[%emt 0:00:00]} 6. Be3 {[%emt 0:09:30] B01: Scandinavian Defence} (6. h3 Bh5 7. g4 Bg6 8. Ne5 Nbd7 9. Nxg6 hxg6 10. Bg2 c6 11. Qd3 e6 12. Bd2 Nb6 13. O-O-O Nbd5 14. Ne2 {1-0 (39) Bologan,V (2640)-Kovalenko,I (2684) Tallinn 2016}) 6... e6 {[%emt 0:02:00]} 7. Be2 {[%emt 0:15:30]} c6 {[%emt 0:00:30]} 8. Ne5 {[%emt 0:12:30]} Bxe2 {[%emt 0:00:30]} 9. Qxe2 {[%emt 0:00:30]} Qc7 {[%emt 0:20:00]} 10. O-O {[%emt 1:02:00]} Bd6 {[%emt 0:00:30]} 11. Bg5 {[%emt 0:00:30]} Nd5 {[%emt 0:00:30]} 12. Ne4 {[%emt 0:06:30]} Bxe5 {[%emt 0:11:30]} 13. dxe5 {[%emt 0:02:30]} Qxe5 $146 {[%emt 0:00:30]} ({Predecessor:} 13... h6 14. Bh4 Nd7 15. Nd6+ Kf8 16. Qh5 g6 17. Qe2 Nf4 18. Qe4 Nd5 19. c4 N5b6 20. Qf4 Rh7 21. Bg3 Nc5 22. Rad1 Qe7 23. b3 {1-0 (23) Rocek,V (1029)-Basson,H (1255) LSS email 2014}) 14. c4 {[%emt 0:05:30]} O-O {[%emt 0:22:30]} 15. Qf3 {[%emt 0:04:37]} Nb6 {[%emt 0:08:30]} 16. Rfe1 {[%emt 0:05:09]} Qf5 {[%emt 0:17:35]} 17. Qxf5 {[%emt 0:00:24]} exf5 {[%emt 0:00:03]} 18. Nd6 {[%emt 0:00:19]} f6 {[%emt 0:02:25]} 19. Be3 {[%emt 0:03:26]} N8d7 {[%emt 0:01:39]} 20. b3 {[%emt 0:00:08]} Rab8 {[%emt 0:02:26]} 21. Nxf5 {[%emt 0:00:25]} Ne5 {[%emt 0:04:46]} 22. a4 {[%emt 0:00:05]} Ra8 {[%emt 0:01:07]} 23. a5 {[%emt 0:03:08]} Nc8 {[%emt 0:01:25]} 24. Bc5 {[%emt 0:01:35]} Rd8 {[%emt 0:01:22]} 25. Rad1 {[%emt 0:00:36]} Rd3 {[%emt 0:01:51]} 26. f4 {[%emt 0:01:22]} Rxd1 {[%emt 0:00:52]} 27. Rxd1 {[%emt 0:00:05]} Nf7 {[%emt 0:00:16]} 28. Re1 {[%emt 0:00:25]} h6 {[%emt 0:01:07]} 29. Re8+ {[%emt 0:00:07]} Kh7 {[%emt 0:00:01]} 30. Ne7 {[%emt 0:00:52]} Nb6 {[%emt 0:01:49] [#]} 31. Rxa8 $1 {[%emt 0:00:42]} ({Much less strong is} 31. axb6 $6 Rxe8 32. bxa7 g5) 31... Nxa8 {[%emt 0:00:01]} 32. Bxa7 {[%emt 0:00:30]} Nc7 {[%emt 0:00:07]} 33. b4 {[%emt 0:02:07]} Na6 {[%emt 0:02:03]} 34. b5 {[%emt 0:00:14]} cxb5 {[%emt 0:00:03]} 35. cxb5 {[%emt 0:00:03]} Nc7 {[%emt 0:00:18] [#]} 36. a6 $1 {[%emt 0:00:10]} Nd6 {[%emt 0:02:21]} 37. Bb8 $18 {[%emt 0:00:27]} Ndxb5 {[%emt 0:00:44]} 38. Bxc7 {[%emt 0:00:17]} Nxc7 {[%emt 0:00:07]} 39. axb7 {[%emt 0:00:04]} 1-0

[Event "Istanbul Open 2017"]
[Site "Istanbul"]
[Date "2017.09.14"]
[Round "5"]
[White "Zeydan, Salih"]
[Black "Ozsakallioglu, Akin"]
[Result "1-0"]
[ECO "B14"]
[WhiteElo "2057"]
[BlackElo "1893"]
[Annotator "NA RC"]
[PlyCount "177"]
[EventDate "2017.??.??"]
[EventType "swiss"]
[EventCountry "TUR"]
[SourceTitle "playchess.com"]
[Source "ChessBase"]
[SourceQuality "1"]
[TimeControl "5400+30"]

{[%evp 11,170,0,5,0,32767,32767,32767,32767,32767,32767,32767,32767,32767,32767,68,32767,32767,32767,32767,32767,32767,32767,32767,32767,32767,32767,32767,32767,32767,32767,32767,32767,106,83,32767,63,61,0,61,24,112,47,52,45,54,25,22,34,150,136,232,250,231,102,125,116,32767,32767,32767,32767,32767,105,83,80,84,54,26,41,79,0,50,4,101,32767,310,361,421,708,620,6409,970,32767,32767,32767,32767,32767,32767,32767,32767,32767,32767,32767,32767,32767,32767,32767,32767,32767,32767,32767,32767,6045,2289,32767,32767,32767,32767,1310,32767,32767,32767,32767,2583,12837,2223,29974,12840,32767,32767,32767,32767,32767,32767,29981,29981,29976,32767,32767,32767,32767,32767,22,11,32767,29977,29980,29980,32767,32767,32767,32767,29983,29984,12845,29984,29980,29984,29982,12846,29983,29984,12844,29991,12847,29992,29993,29993,12846,12846,32767,12847]} 1. e4 {[%emt 0:01:30]} c5 {[%emt 0:00:00]} 2. Nf3 {[%emt 0:00:30]} e6 {[%emt 0:00:30]} 3. c3 {[%emt 0:00:30]} Nc6 {[%emt 0:00:30]} 4. d4 {[%emt 0:00:30]} cxd4 {[%emt 0:00:30]} 5. cxd4 {[%emt 0:00:30]} d5 {[%emt 0:00:30]} 6. exd5 {[%emt 0:02:30]} exd5 {[%emt 0:00:30]} 7. Nc3 {[%emt 0:00:30]} Nf6 {[%emt 0:00:30]} 8. Bb5 {[%emt 0:05:30]} a6 {[%emt 0:04:30]} 9. Bxc6+ {[%emt 0:01:30]} bxc6 {[%emt 0:00:30]} 10. Ne5 {[%emt 0:01:30]} Bd7 {[%emt 0:00:30]} 11. O-O {[%emt 0:01:30]} Be7 {[%emt 0:00:30]} 12. Bg5 {[%emt 0:01:30]} O-O {[%emt 0:03:30]} 13. Re1 {B14: Caro-Kann: Panov-Botvinnik Attack with 5...e6 and 5...g6} h6 14. Bh4 Re8 15. Rc1 Bb4 $146 {[%emt 0:31:00]} ({Find the theoretical novelty and annotate with similar games:} 15... Nh7 16. Qh5 g6 17. Bxe7 gxh5 18. Bxd8 Raxd8 19. Na4 f6 20. Nxd7 Rxe1+ 21. Rxe1 Rxd7 {1-0 (29) Reiss,T (2377)-Muranyi,K (2385) Budapest 2006}) 16. Bxf6 {[%emt 0:47:00]} gxf6 {[%emt 0:00:30]} 17. Nd3 {[%emt 0:00:30]} Rxe1+ {[%emt 0:00:30]} 18. Qxe1 {[%emt 0:00:30]} Bd6 {[%emt 0:00:30]} 19. Qd2 {[%emt 0:00:30]} Kh7 {[%emt 0:00:30]} 20. Nf4 {[%emt 0:00:30]} Bf5 {[%emt 0:00:30]} 21. Nce2 {[%emt 0:00:30]} Rc8 {[%emt 0:01:30]} 22. Ng3 {[%emt 0:01:30]} Bg6 {[%emt 0:00:30]} 23. h4 {[%emt 0:02:30]} Qd7 {[%emt 0:02:30]} 24. h5 {[%emt 0:15:30]} (24. Nxg6 $14 fxg6 25. Qd3) 24... Bf5 {[%emt 0:00:30]} 25. a3 {[%emt 0:00:30]} Rg8 {[%emt 0:00:30]} (25... Kg7 $11) 26. Nfe2 {[%emt 0:02:30]} Rc8 {[%emt 0:10:30]} 27. Rc3 {[%emt 0:01:30]} Be4 {[%emt 0:03:30]} 28. Qe3 {[%emt 0:06:30]} Re8 {[%emt 0:01:30]} 29. Qc1 {[%emt 0:01:30]} Rc8 {[%emt 0:06:30]} (29... Kg7 $1 $14) 30. f3 {[%emt 0:00:30]} Bxg3 {[%emt 0:01:30]} (30... Bf5 $16 {is a better defense.}) 31. Nxg3 {[%emt 0:00:30]} Bf5 {[%emt 0:00:00]} 32. Nxf5 {[%emt 0:04:10]} (32. Qf4 $18 {is the precise move to win.} Bb1 33. Qxf6) 32... Qxf5 {[%emt 0:00:00]} 33. Rxc6 {[%emt 0:00:07]} Rxc6 {[%emt 0:00:30]} 34. Qxc6 {[%emt 0:00:13]} Qb1+ {[%emt 0:00:30]} 35. Kh2 {[%emt 0:00:30]} Qxb2 {[%emt 0:00:00]} 36. Qxd5 {[%emt 0:03:57]} (36. Qxf6 $18 {und der Rest ist Schweigen.} Kg8 37. Qxh6 Qxd4 38. Qg5+ (38. Qxa6 Qh4+ 39. Kg1 Qe1+ 40. Qf1 Qe5 $18) 38... Kh7 39. Kg3) 36... Kg7 {[%emt 0:01:00]} 37. Qd6 {[%emt 0:00:43]} Qb5 {[%emt 0:01:30]} 38. Qc5 {[%emt 0:04:53]} (38. Qg3+ $16 Kh7 39. Qh4) 38... Qb8+ {[%emt 0:00:00]} 39. Kh3 {[%emt 0:00:53]} Qb1 {[%emt 0:01:00]} 40. Kg4 {[%emt 0:01:56]} Qf1 {[%emt 0:01:30] [#]} 41. g3 {[%emt 0:01:00]} (41. Qc2 $1 $16) 41... Qd3 {[%emt 0:00:30]} (41... Qa1 $11 {keeps the balance.}) 42. d5 {[%emt 0:03:21]} f5+ $2 {[%emt 0:00:30]} (42... Qd2 $11 {and Black has nothing to worry.}) 43. Kf4 {[%emt 0:00:25]} Qd2+ {[%emt 0:00:30]} 44. Qe3 {[%emt 0:00:23]} Qh2 {[%emt 0:02:30]} 45. d6 {[%emt 0:02:07]} Qxh5 {[%emt 0:00:30]} 46. Qe5+ {[%emt 0:00:22]} f6 {[%emt 0:00:30]} 47. Qe7+ {[%emt 0:00:58]} Kg8 {[%emt 0:00:00]} 48. Qxf6 {[%emt 0:00:15]} Qe8 {[%emt 0:00:00]} 49. Kxf5 {[%emt 0:02:07]} Qb5+ {[%emt 0:00:30]} 50. Ke6 {[%emt 0:00:28]} Qe8+ {[%emt 0:00:30]} 51. Qe7 {[%emt 0:00:32]} Qc8+ {[%emt 0:00:30]} 52. Qd7 {[%emt 0:01:16]} Qc4+ {[%emt 0:00:00]} 53. Ke7 {[%emt 0:00:19]} Qf7+ {[%emt 0:01:00]} 54. Kd8 {[%emt 0:00:01]} Qxf3 {[%emt 0:00:00]} 55. Qe6+ {[%emt 0:00:47]} Kg7 {[%emt 0:00:00]} 56. d7 {[%emt 0:01:00]} (56. Qe5+ $142 Kg8 57. d7 Qa8+ 58. Ke7 Qf8+ 59. Ke6 Qf7+ 60. Kd6 Qf8+ 61. Kc7) 56... Qa8+ {[%emt 0:00:30]} 57. Kc7 {[%emt 0:00:20]} Qa7+ {[%emt 0:00:00]} 58. Kc6 {[%emt 0:00:27]} Qa8+ {[%emt 0:00:00]} 59. Kb6 {[%emt 0:01:01]} (59. Kc5 $142 Qd8 60. Qd6) 59... Qb8+ {[%emt 0:00:30]} 60. Kxa6 {[%emt 0:00:12]} Qa8+ {[%emt 0:00:00]} 61. Kb6 {[%emt 0:00:33]} Qb8+ {[%emt 0:00:00]} 62. Kc6 {[%emt 0:00:33]} Qa8+ {[%emt 0:00:00]} 63. Kb5 {[%emt 0:00:35]} Qb7+ {[%emt 0:00:00]} 64. Ka4 {[%emt 0:00:40]} Qa7+ {[%emt 0:00:30]} 65. Kb3 {[%emt 0:00:34]} Qb7+ {[%emt 0:00:00]} 66. Kc3 {[%emt 0:00:47]} Qc7+ {[%emt 0:00:00]} 67. Kd4 {[%emt 0:00:50]} Qa7+ {[%emt 0:00:30]} 68. Ke4 {[%emt 0:00:21]} Qa4+ {[%emt 0:00:00]} 69. Kf5 {[%emt 0:00:29]} Qc2+ {[%emt 0:00:00]} 70. Kg4 {[%emt 0:00:44]} Qd1+ {[%emt 0:00:30]} 71. Kf4 {[%emt 0:00:52]} (71. Kh4 $16 Qh1+ 72. Kg4 h5+ 73. Kg5 Qc1+ 74. Kxh5 Qh1+ 75. Kg4 Qd1+ 76. Kf4 Qf1+ 77. Ke5 Qa1+ 78. Ke4 Qb1+ 79. Kd4 Qb2+ 80. Kd3 Qxa3+ 81. Ke2 Qb2+ 82. Kf3) 71... Qf1+ $1 {[%emt 0:00:30]} 72. Ke5 {[%emt 0:00:46]} Qe2+ {[%emt 0:00:30]} 73. Kd6 {[%emt 0:00:25]} Qa6+ {[%emt 0:00:30]} 74. Ke7 {[%emt 0:00:53]} Qxa3+ {[%emt 0:00:00]} 75. Qd6 {[%emt 0:00:26]} Qe3+ {[%emt 0:00:00]} 76. Kd8 {[%emt 0:00:19]} Qa7 {[%emt 0:00:30]} 77. Qe5+ {[%emt 0:00:33]} Kf7 {[%emt 0:00:30]} 78. Qf5+ {[%emt 0:00:25]} Kg7 {[%emt 0:00:00]} 79. Qg4+ {[%emt 0:00:44]} Kf8 {[%emt 0:00:00]} 80. Qb4+ {[%emt 0:00:28]} Kf7 {[%emt 0:00:30]} 81. Qc4+ {[%emt 0:00:41]} Kf8 {[%emt 0:00:30]} 82. Qf4+ {[%emt 0:00:22]} Kg7 {[%emt 0:00:30]} 83. Ke8 {[%emt 0:00:40]} Qa2 {[%emt 0:00:30]} 84. Qf8+ {[%emt 0:00:24]} Kg6 {[%emt 0:00:30]} 85. d8=Q {[%emt 0:00:11]} Qe6+ $18 {[%emt 0:00:30]} 86. Qfe7 {[%emt 0:00:45]} Qc6+ {[%emt 0:00:30]} 87. Qed7 {[%emt 0:00:40]} Qe4+ {[%emt 0:00:30]} 88. Kf8 {[%emt 0:00:25]} Qf3+ {[%emt 0:00:00]} 89. Kg8 {[%emt 0:00:17]} 1-0